[Event "Ramat Gan Masters-A Winter 2023"]
[Site "Ramat Gan/ISR"]
[Date "2023.02.20"]
[Round "5.6"]
[White "Malachi, Avraham"]
[Black "Sherman, Reem"]
[Result "0-1"]
[Annotator "TA"]
[ECO "B77"]
[WhiteElo "1975"]
[BlackElo "2249"]
[PlyCount "78"]
[EventDate "2023.01.17"]
[EventType "swiss"]
[SourceTitle "playchess.com"]
[Source "ChessBase"]
[SourceQuality "1"]
[TimeControl "5400+30"]

{[%evp 23,78,9,16,22,29,49,47,40,68,59,73,85,73,67,83,83,138,123,121,152,168,156,160,151,131,0,101,108,110,14,29,-312,-302,-419,-389,-381,-146,-148,-71,-266,-221,-215,-197,-267,-262,-327,-163,-159,-160,-590,-587,-633,-598,-636,-621,-753,-743]} 1. e4 {[%emt 0:00:04]} c5 {[%emt 0:00:17]} 2. Nf3 {[%emt 0:00:06]} g6 {[%emt 0:00:13]} 3. d4 {[%emt 0:00:10]} cxd4 {[%emt 0:00:06]} 4. Nxd4 {[%emt 0:00:06]} Bg7 {[%emt 0:00:05]} 5. Nc3 {[%emt 0:00:07]} Nc6 {[%emt 0:00:10]} 6. Be3 {[%emt 0:00:05]} Nf6 {[%emt 0:00:08]} 7. Bc4 {[%emt 0:00:25]} O-O {[%emt 0:00:11]} 8. Bb3 {[%emt 0:00:11]} d6 {[%emt 0:00:08]} 9. f3 {[%emt 0:00:15]} Bd7 {[%emt 0:00:07]} 10. Qd2 {[%emt 0:00:21]} Nxd4 {[%emt 0:01:53]} 11. Bxd4 {[%emt 0:00:08]} b5 {[%emt 0:00:03]} 12. h4 {[%emt 0:03:21][%cal Bh2h4,Bh4h5,Bh5g6][%mdl 32]} a5 {[%emt 0:00:09] [#]} 13. h5 $1 {[%emt 0:03:07] B77: Sicilian Dragon: Yugoslav Attack, 9 Bc4 sidelines.} e5 {[%emt 0:09:33]} (13... a4 14. Bd5) 14. hxg6 $1 {[%emt 0:30:02]} exd4 {[%emt 0:01:46]} 15. Bxf7+ {[%emt 0:00:29] White is slightly better.} Kh8 {[%emt 0:07:08]} 16. Qxd4 {[%emt 0:08:54]} (16. Nd5 $2 Rxf7 17. Qg5 (17. gxf7 $2 Nxd5 18. exd5 Qe7+ 19. Kf2 Qxf7 $19) 17... Be6 18. gxf7 Bxd5 19. exd5 Qe7+ 20. Kf1 Qxf7 $17) 16... Rxf7 {[%emt 0:04:28]} 17. gxf7 {[%emt 0:00:13]} b4 {[%emt 0:01:50]} 18. Ne2 {[%emt 0:10:30]} Be6 {[%emt 0:03:41]} 19. O-O-O {[%emt 0:08:59]} Bxf7 {[%emt 0:23:46] [#]} (19... Nd5 $142 20. Qg1 Qg5+ 21. Kb1 Qf6) 20. Qxd6 $146 {[%emt 0:00:21]} ({Predecessor:} 20. e5 Ne8 21. Qe4 h6 22. f4 Rc8 23. Rd2 Qc7 24. e6 Nf6 25. Qd4 Bg6 26. Qxd6 Qxd6 27. Rxd6 {0-1 Tekeyev,Y (2275)-Putintsev,V Nevinnomyssk-ch 2011 (10)}) 20... Qxd6 {[%emt 0:09:54]} 21. Rxd6 {[%emt 0:00:03]} Ne8 {[%emt 0:00:58]} 22. Rd7 {[%emt 0:03:47]} Bxa2 {[%emt 0:04:16] [#]} 23. Rhd1 $1 {[%emt 0:14:19]} Bf6 {[%emt 0:01:21]} 24. Rh1 {[%emt 0:02:35]} (24. b3 $16 {[%cal Oe4e5] Threatens to win with e5!} Rc8 25. Nd4 Bxd4 {[%mdl 64] Remove Defender} 26. R1xd4 Bxb3 27. Rd8 Rxd8 28. Rxd8) 24... Bc4 {[%emt 0:02:12]} (24... Bg7 $1 $11) 25. Nf4 {[%emt 0:02:37]} Kg8 {[%emt 0:03:25]} 26. Rdxh7 {[%emt 0:03:51]} ({But not} 26. Rhxh7 Bg7 27. Rh5 Nf6 28. Rxg7+ Kxg7 29. Rg5+ Kf8 $14) (26. Rh5 $16) 26... a4 $1 $11 {[%emt 0:02:02] ...a3 is the strong threat.} 27. Kd2 $2 {[%emt 0:06:17][%mdl 8192]} (27. Rb7 $11) 27... Bxb2 $19 {[%emt 0:01:31]} 28. Ng6 {[%emt 0:00:34]} Bf7 {[%emt 0:02:32] A strong pair of Bishops.} 29. Nh8 {[%emt 0:00:33]} Be6 {[%emt 0:02:29]} (29... Nd6 $19 {is more deadly.} 30. R7h6 (30. Nxf7 $2 Nxf7 31. R7h5 a3 $19) 30... a3 31. Nxf7 Nxf7) 30. Ng6 $17 {[%emt 0:00:21]} Bg7 {[%emt 0:00:51]} ({Better is} 30... Bc3+ 31. Ke2 Bf7 32. Ne7+ Kf8 33. Rxf7+ Kxf7) 31. f4 $2 {[%emt 0:01:03]} (31. Ne7+ $17 Kf7 32. Nc6) 31... Bf7 {[%emt 0:02:05]} 32. Ne7+ {[%emt 0:00:28]} Kf8 {[%emt 0:00:09][%mdl 1024] Black has strong compensation.} 33. Nf5 {[%emt 0:00:25] [#]} (33. Rxg7 $142 Kxg7 34. Nf5+ Kf8 35. Rh8+ Bg8 36. Nh6) 33... Bc3+ $1 $19 {[%emt 0:01:27]} 34. Ke3 {[%emt 0:00:14]} Nf6 {[%emt 0:02:00]} (34... Bg6 $142 35. R7h6 Bxf5 36. exf5 a3) 35. Rh8+ {[%emt 0:00:35]} Ng8 {[%emt 0:00:07][%cal Oa4a3] And now ...a3! would win.} 36. e5 $2 {[%emt 0:00:09]} (36. R8h7 $17) 36... a3 {[%emt 0:01:04][%cal Ba4a3,Ba3a2][%mdl 32] Black is clearly winning.} 37. Nd6 {[%emt 0:00:51]} a2 {[%emt 0:00:38]} 38. Nxf7 {[%emt 0:00:28]} Kxf7 {[%emt 0:00:22]} 39. f5 {[%emt 0:01:32]} Bxe5 {[%emt 0:00:31] Weighted Error Value: White=0.72/Black=0.32} ({Stronger than} 39... a1=B 40. R1h7+ Kf8 41. f6 $11) 0-1

[Event "Ramat Gan Masters-A Winter 2023"]
[Site "Ramat Gan/ISR"]
[Date "2023.02.20"]
[Round "5.7"]
[White "Kochavi, Dana"]
[Black "Sobel, Ido"]
[Result "1-0"]
[Annotator "TA"]
[ECO "B11"]
[WhiteElo "1956"]
[BlackElo "1871"]
[PlyCount "49"]
[EventDate "2023.01.17"]
[EventType "swiss"]
[SourceTitle "playchess.com"]
[Source "ChessBase"]
[SourceQuality "1"]
[TimeControl "5400+30"]

{[%evp 9,49,31,33,9,16,22,31,-12,-8,-33,-11,-25,27,0,143,141,157,120,102,106,283,256,312,303,547,565,753,720,735,719,909,534,1225,1185,1156,1147,1444,1415,1363,1379,2235,1224]} 1. e4 {[%emt 0:00:01][%cal Be2e4,Be4e5][%mdl 32]} c6 {[%emt 0:00:01]} 2. Nc3 {[%emt 0:00:06]} d5 {[%emt 0:00:06]} 3. Nf3 {[%emt 0:00:03]} Nf6 {[%emt 0:00:05]} 4. e5 {[%emt 0:00:05]} Ne4 {[%emt 0:00:04]} 5. Ne2 {[%emt 0:00:03]} Qb6 {[%emt 0:00:04][%csl Ge4][%cal Rb6f2]} 6. d4 $1 {[%emt 0:00:04] B11: Caro-Kann: Two Knights Variation.} e6 {[%emt 0:00:06]} 7. Ng3 {[%emt 0:00:03]} c5 {[%emt 0:00:12]} 8. Bd3 {[%emt 0:00:07] White is slightly better.} Nxg3 $1 {[%emt 0:00:35]} 9. fxg3 {[%emt 0:00:04]} Nc6 {[%emt 0:01:58]} 10. O-O {[%emt 0:00:09] Ng5 would be deadly.} h6 {[%emt 0:01:10] Prevents Ng5.} ({Black should play} 10... cxd4 11. Qd2 Bd7) 11. Nh4 {[%emt 0:12:27] [#] Strongly threatening Qh5.} Nd8 $146 {[%emt 0:36:57] [#]} (11... c4 $11 {keeps the balance.} 12. Bg6 fxg6 13. Nxg6 Qxd4+ 14. Qxd4 Nxd4 15. Nxh8 Nxc2) ({Predecessor:} 11... c4 12. Bg6 fxg6 13. Nxg6 Qxd4+ 14. Qxd4 Nxd4 15. Nxh8 Nxc2 16. Rb1 Bc5+ 17. Kh1 Bd7 {1-0 Aizenberg,B (2307)-Li,S (2190) Gran Canaria Online Blitz 2021 (2)}) 12. Qh5 $1 $16 {[%emt 0:12:29] White is more active.} Be7 {[%emt 0:12:42]} (12... c4 $2 13. Bg6 (13. Be2 Qxd4+ 14. Kh1 Qe4 $17) 13... Qxd4+ 14. Kh1 fxg6 15. Nxg6 $18) 13. dxc5 {[%emt 0:25:39]} Qxc5+ {[%emt 0:03:13]} 14. Kh1 {[%emt 0:00:04]} Bxh4 {[%emt 0:01:34] Black cannot hold the game after this.} (14... b6 $16 {keeps fighting.}) 15. gxh4 $18 {[%emt 0:02:29]} ({Weaker is} 15. Qxh4 Bd7 $16) 15... Qc7 {[%emt 0:08:48]} 16. Bd2 {[%emt 0:06:32][%cal Bc1d2,Bd2b4,Bb4d6][%mdl 32] Bb4 is the strong threat. Black is weak on the dark squares} Bd7 $2 {[%emt 0:11:04]} (16... Nc6 {was called for.} 17. Rae1 a5) 17. Bb4 {[%emt 0:00:51] White is clearly winning.} Bc6 {[%emt 0:01:15]} 18. Bd6 {[%emt 0:01:06]} Qd7 {[%emt 0:00:01]} 19. Qg4 {[%emt 0:00:35]} g6 {[%emt 0:01:46]} 20. Qf4 {[%emt 0:00:57]} Bb5 {[%emt 0:03:41] [#]} 21. Bxg6 {[%emt 0:03:31][%mdl 576] Back Rank} Bxf1 {[%emt 0:00:14]} (21... Rg8 22. Qxh6) 22. Rxf1 {[%emt 0:00:05]} Qb5 {[%emt 0:03:43]} 23. Bd3 {[%emt 0:00:35] This pair of bishops is nice.} Qd7 {[%emt 0:01:58]} 24. Qf6 {[%emt 0:00:07][%cal Rf6h8]} Rf8 {[%emt 0:00:14]} 25. Qg7 {[%emt 0:34:48] Weighted Error Value: White=0.40/Black=0.70} 1-0

[Event "Ramat Gan Masters-A Winter 2023"]
[Site "Ramat Gan/ISR"]
[Date "2023.02.20"]
[Round "5.8"]
[White "Neumann, Amit"]
[Black "Hasson Shreger, Shalev"]
[Result "0-1"]
[Annotator "NA RC COMBH"]
[ECO "A03"]
[WhiteElo "1615"]
[BlackElo "1823"]
[PlyCount "35"]
[EventDate "2023.01.17"]
[EventType "swiss"]
[SourceTitle "playchess.com"]
[Source "ChessBase"]
[SourceQuality "1"]
[TimeControl "5400+30"]

1. f4 {[%emt 0:00:06]} d5 {[%emt 0:00:36]} 2. Nf3 {[%emt 0:00:06]} Nf6 {[%emt 0:01:12]} 3. b3 {[%emt 0:00:08]} c5 {[%emt 0:02:27]} 4. e3 {[%emt 0:00:33]} e6 {[%emt 0:02:00]} 5. Bb2 {[%emt 0:01:16]} Be7 {[%emt 0:00:52]} 6. Be2 {[%emt 0:00:28]} O-O {[%emt 0:00:05]} 7. O-O {[%emt 0:01:09]} Nc6 {[%emt 0:00:39]} 8. Ne5 {[%emt 0:01:31]} Nd7 {[%emt 0:06:49]} 9. Bd3 {[%emt 0:05:27]} Ndxe5 {[%emt 0:05:21]} 10. fxe5 {[%emt 0:00:12]} d4 {[%emt 0:02:19]} 11. exd4 {[%emt 0:05:04]} cxd4 {[%emt 0:00:12]} 12. Qe2 {[%emt 0:07:50]} g6 {[%emt 0:02:53]} 13. Be4 {[%emt 0:04:03]} Bc5 {[%emt 0:07:36]} 14. d3 {[%emt 0:01:09]} Nxe5 {[%emt 0:08:53]} 15. Bxb7 {[%emt 0:01:05]} Bxb7 {[%emt 0:00:00]} 16. Qxe5 {[%emt 0:00:08]} Rc8 {[%emt 0:00:05]} 17. Rf4 {[%emt 0:07:13]} Bd6 {[%emt 0:02:33]} 18. Qxd4 {[%emt 0:00:37]} 0-1

[Event "Ramat Gan Masters-A Winter 2023"]
[Site "Ramat Gan/ISR"]
[Date "2023.02.20"]
[Round "5.9"]
[White "Meirovich, Ilay"]
[Black "Azoulay, Yehonatan"]
[Result "1/2-1/2"]
[Annotator "TA"]
[ECO "D79"]
[WhiteElo "1979"]
[BlackElo "1770"]
[PlyCount "62"]
[EventDate "2023.01.17"]
[EventType "swiss"]
[SourceTitle "playchess.com"]
[Source "ChessBase"]
[SourceQuality "1"]
[TimeControl "5400+30"]

{[%evp 19,62,0,0,0,0,-16,9,0,6,11,10,6,15,16,15,16,14,24,53,37,56,0,97,-8,-5,-26,-20,-17,-7,-29,-29,-46,-38,-47,-43,-47,-43,-72,-72,-60,-34,-66,0,0,0]} 1. d4 {[%emt 0:00:01]} Nf6 {[%emt 0:00:13]} 2. g3 {[%emt 0:00:03]} d5 {[%emt 0:00:29]} 3. Bg2 {[%emt 0:00:40]} g6 {[%emt 0:01:13]} 4. c4 {[%emt 0:01:47]} c6 {[%emt 0:00:16]} 5. Nf3 {[%emt 0:00:38]} Bg7 {[%emt 0:00:53]} 6. O-O {[%emt 0:00:13]} O-O {[%emt 0:00:09]} 7. cxd5 {[%emt 0:10:05]} cxd5 {[%emt 0:00:18]} 8. Nc3 {[%emt 0:00:09]} Nc6 {[%emt 0:00:15]} 9. Bf4 {[%emt 0:01:49]} Ne4 {[%emt 0:03:47]} 10. Rc1 {[%emt 0:12:53]} Bf5 {[%emt 0:01:40]} 11. Ne5 {[%emt 0:01:16] D79: Fianchetto Grünfeld: Symmetrical Variation (6 0-0 c6 7 cxd5 cxd5).} Nxc3 {[%emt 0:05:45]} 12. bxc3 {[%emt 0:01:38] [#]} Rc8 $146 {[%emt 0:04:00]} ({Predecessor:} 12... Na5 13. Qa4 Rc8 14. Rfd1 Re8 15. c4 f6 16. Bd2 fxe5 17. Bxa5 b6 18. Be1 exd4 19. cxd5 {1-0 Bindrich,F (2590)-Lorparizangeneh,S (2519) Moscow Aeroflot op-A 16th 2017 (4)}) 13. Qb3 {[%emt 0:00:42]} e6 {[%emt 0:04:32][%cal Be7e6,Be6e5][%mdl 32]} 14. Nxc6 {[%emt 0:10:59]} bxc6 {[%emt 0:04:33]} 15. Qa3 {[%emt 0:00:36]} Qb6 {[%emt 0:02:21]} 16. Bd6 {[%emt 0:00:54]} Rfe8 {[%emt 0:00:28]} 17. f3 {[%emt 0:00:13] [#] Strongly threatening e4.} e5 $1 {[%emt 0:00:57]} 18. e4 {[%emt 0:00:34]} Bd7 {[%emt 0:07:06]} 19. Rb1 {[%emt 0:00:08]} Qd8 {[%emt 0:01:04]} 20. dxe5 {[%emt 0:06:01]} ({Don't play} 20. Qxa7 Ra8 21. Qc5 Ra5 $15) (20. Qc5 $14) 20... dxe4 {[%emt 0:04:39] [#]} (20... Bxe5 $11 21. Bxe5 Rxe5) 21. fxe4 {[%emt 0:00:19] White is more active.} (21. f4 $1 $16) 21... Bxe5 $11 {[%emt 0:03:19]} 22. Bxe5 {[%emt 0:00:40]} (22. Rb7 $5 {[%cal Rd6e5]} Bxd6 23. Qxd6 $11) 22... Rxe5 {[%emt 0:00:08]} 23. Qxa7 {[%emt 0:01:25] Black must now prevent Rfd1.} Be6 {[%emt 0:02:25]} 24. Qf2 {[%emt 0:16:15]} (24. Bh3 {keeps more tension.} Ra8 25. Qb7 Bxa2 26. Rbd1) 24... Ra5 {[%emt 0:01:59]} 25. Rbd1 {[%emt 0:04:44]} Qe7 {[%emt 0:01:51]} 26. Rd2 {[%emt 0:02:55]} Rca8 {[%emt 0:04:11][%cal Ra5a2]} 27. Rb1 {[%emt 0:04:35]} Bxa2 {[%emt 0:02:19]} 28. Re1 {[%emt 0:03:16]} Be6 {[%emt 0:01:06]} 29. e5 {[%emt 0:01:13]} Qc5 {[%emt 0:01:47]} 30. Qd4 {[%emt 0:03:26]} Qxd4+ {[%emt 0:04:38]} (30... Rb5 $15) 31. cxd4 {[%emt 0:00:06]} Bd5 {[%emt 0:00:27] Weighted Error Value: White=0.18 (very precise) /Black=0.16 (very precise)} 1/2-1/2

[Event "Ramat Gan Masters-A Winter 2023"]
[Site "Ramat Gan/ISR"]
[Date "2023.02.20"]
[Round "5.10"]
[White "Medovoy, Yaniv"]
[Black "Lapushnian, Maya"]
[Result "0-1"]
[Annotator "NA RC COMBH"]
[ECO "B23"]
[WhiteElo "1842"]
[BlackElo "1707"]
[PlyCount "97"]
[EventDate "2023.01.17"]
[EventType "swiss"]
[SourceTitle "playchess.com"]
[Source "ChessBase"]
[SourceQuality "1"]
[TimeControl "5400+30"]

{[%evp 30,97,7,32767,32767,-23,-11,-34,0,-22,32767,0,0,32767,32767,0,0,-31,0,-134,-142,-139,-103,-102,-106,32767,32767,32767,62,115,200,-31,23,29,101,135,158,93,160,133,201,32767,32767,32767,15,-47,-26,-53,-26,32767,-69,-70,-49,-47,-67,32767,-119,-178,-177,-960,-1206,-898,-2059,-1086,-2832,-5339,-1177,-29974,-29982,-29980]} 1. e4 {[%emt 0:00:23]} c5 {[%emt 0:00:10]} 2. Nc3 {[%emt 0:00:04]} Nc6 {[%emt 0:00:05]} 3. Bb5 {[%emt 0:00:02]} Nd4 {[%emt 0:00:08]} 4. Bc4 {[%emt 0:00:01]} a6 {[%emt 0:00:19]} 5. a4 {[%emt 0:00:02]} e6 {[%emt 0:00:07]} 6. Nge2 {[%emt 0:00:12]} Ne7 {[%emt 0:00:22]} 7. O-O {[%emt 0:00:35]} g6 {[%emt 0:05:59]} 8. Nxd4 {[%emt 0:08:33]} cxd4 {[%emt 0:01:27]} 9. Ne2 {[%emt 0:00:35]} Bg7 {[%emt 0:03:05]} 10. d3 {[%emt 0:00:59]} d5 {[%emt 0:05:17]} 11. Bb3 {[%emt 0:00:45]} O-O {[%emt 0:01:13]} 12. f4 {[%emt 0:01:31]} dxe4 {[%emt 0:12:17]} 13. dxe4 {[%emt 0:01:10]} Qb6 {[%emt 0:00:02]} 14. Qd3 {[%emt 0:09:50]} Rd8 {[%emt 0:04:11]} 15. Kh1 {[%emt 0:07:38]} Bd7 {[%emt 0:06:27]} 16. Ng3 {[%emt 0:06:07]} Rac8 {[%emt 0:15:20]} 17. Bd2 {[%emt 0:10:03]} Qc5 {[%emt 0:03:08]} 18. Qf3 {[%emt 0:17:59]} Bc6 {[%emt 0:12:25]} (18... b5 $5 {[%cal Rb5a4]} 19. Ba5 Re8 20. axb5 Bxb5 $11) 19. Qf2 {[%emt 0:03:54]} Bd7 {[%emt 0:10:05]} 20. Qe1 {[%emt 0:09:30]} Qc7 {[%emt 0:04:43]} 21. Rc1 {[%emt 0:07:08]} Qb8 {[%emt 0:02:18]} 22. Bb4 {[%emt 0:08:00]} Nc6 {[%emt 0:04:17]} 23. f5 {[%emt 0:00:57]} Be5 {[%emt 0:01:01]} (23... b5 $15 24. axb5 Nxb4 25. Qxb4 Bxb5) 24. f6 {[%emt 0:03:28]} (24. fxg6 $11 hxg6 25. Bd2) 24... Nxb4 {[%emt 0:01:51]} 25. Qxb4 {[%emt 0:00:17]} Bc6 {[%emt 0:00:45]} 26. Qd2 {[%emt 0:01:01] [#]} Qd6 $1 {[%emt 0:00:30]} (26... Bxg3 $2 {gets mated.} 27. Qh6 Bxe4 28. Qg7#) 27. Nh5 {[%emt 0:01:54]} Qf8 {[%emt 0:05:17]} 28. Qg5 {[%emt 0:00:28]} Bb8 {[%emt 0:00:49] [#]} (28... Bd7 $11) 29. Bxe6 $1 {[%emt 0:00:57]} Rc7 $18 {[%emt 0:00:46] [#]} (29... fxe6 $2 30. f7+ $18) (29... Qd6 $2 30. Nf4 Rd7 31. Bxd7 Bxd7 32. e5 $18) (29... Bd7 $16 {was worth a try.} 30. Bxd7 Rxd7) 30. Ng3 $2 {[%emt 0:00:54]} Re8 {[%emt 0:00:35]} ({Don't take} 30... fxe6 31. f7+ {[%mdl 64] Decoy} Rxf7 32. Rxf7 {[%mdl 64] Remove Defender} Kxf7 33. Rf1+ Kg8 34. Rxf8+ Rxf8 35. Qe7 $14) 31. Bd5 {[%emt 0:00:17]} Bxa4 {[%emt 0:00:13]} (31... Kh8 $1 $11 {remains equal.}) 32. Nf5 {[%emt 0:00:43]} Bc6 {[%emt 0:00:43]} (32... Rd7 $142) 33. Ne7+ {[%emt 0:00:04]} ({Don't do} 33. Nxd4 $6 Bxd5 34. exd5 (34. Qxd5 $2 {is the wrong capture.} Rd8 $19) 34... Re4 $16) (33. Rce1 $18) 33... Kh8 {[%emt 0:00:11]} (33... Rcxe7 $142 34. fxe7 Rxe7) 34. Bxc6 $2 {[%emt 0:00:13]} (34. Nxg6+ $18 fxg6 35. f7 Rxf7 36. Rxf7) 34... bxc6 {[%emt 0:00:03]} 35. Rf3 {[%emt 0:00:35]} Rb7 {[%emt 0:00:20]} 36. Rh3 {[%emt 0:00:31]} Rb5 $1 {[%emt 0:00:36]} 37. Qh4 {[%emt 0:00:49]} ({Wrong is} 37. Nxg6+ $2 fxg6 38. Qxg6 Rb7 $17) ({Better is} 37. Qd2 $11) 37... Rh5 {[%emt 0:00:01]} 38. Qg4 {[%emt 0:00:08]} Rxh3 {[%emt 0:00:08]} 39. Qxh3 {[%emt 0:00:07]} Bd6 $1 {[%emt 0:00:48]} 40. Nxc6 {[%emt 0:01:06]} Rxe4 {[%emt 0:00:01]} 41. Rf1 {[%emt 0:00:56]} Qe8 $1 {[%emt 0:01:07]} 42. Na5 {[%emt 0:00:27]} Rf4 $2 {[%emt 0:01:47]} (42... Re1 $19 {[%cal Re1f1] has better winning chances.} 43. Qf3 Rxf1+ 44. Qxf1 Qe5) 43. Rg1 {[%emt 0:00:34]} (43. Rb1 $17) 43... Rxf6 {[%emt 0:00:09]} 44. Qd3 $2 {[%emt 0:00:01]} (44. Nc4) 44... Qe5 {[%emt 0:00:22]} 45. Qg3 {[%emt 0:00:51]} Qxa5 {[%emt 0:00:10]} 46. Qh4 {[%emt 0:00:00]} Qe5 {[%emt 0:00:20]} 47. Qh3 {[%emt 0:00:52]} Qe2 {[%emt 0:01:14]} 48. Qc8+ {[%emt 0:01:19]} Kg7 {[%emt 0:00:03]} 49. Qc6 {[%emt 0:00:00]} 0-1

[Event "Ramat Gan Masters-A Winter 2023"]
[Site "Ramat Gan/ISR"]
[Date "2023.02.20"]
[Round "5.11"]
[White "Shapira, Avner"]
[Black "Goz, Shachar"]
[Result "0-1"]
[Annotator "NA RC COMBH"]
[ECO "B44"]
[WhiteElo "1814"]
[BlackElo "1623"]
[PlyCount "72"]
[EventDate "2023.01.17"]
[EventType "swiss"]
[SourceTitle "playchess.com"]
[Source "ChessBase"]
[SourceQuality "1"]
[TimeControl "5400+30"]

1. e4 {[%emt 0:00:02]} c5 {[%emt 0:00:05]} 2. Nf3 {[%emt 0:00:11]} e6 {[%emt 0:00:01]} 3. d4 {[%emt 0:00:09]} cxd4 {[%emt 0:00:04]} 4. Nxd4 {[%emt 0:00:07]} Nc6 {[%emt 0:00:04]} 5. Nb5 {[%emt 0:00:57]} d6 {[%emt 0:00:06]} 6. c4 {[%emt 0:00:15]} a6 {[%emt 0:00:10]} 7. N5c3 {[%emt 0:00:12]} Nf6 {[%emt 0:00:08]} 8. Be2 {[%emt 0:00:33]} Be7 {[%emt 0:00:06]} 9. O-O {[%emt 0:00:12]} O-O {[%emt 0:00:03]} 10. Be3 {[%emt 0:01:21] 10.Na3 is the fancy move.} Rb8 {[%emt 0:04:54]} 11. Na3 {[%emt 0:07:36]} Qa5 {[%emt 0:03:34]} 12. Nc2 {[%emt 0:01:16]} Rd8 {[%emt 0:03:18] [#]} 13. f4 $146 {[%emt 0:05:18]} ({Predecessor:} 13. a3 Qc7 14. f4 Na5 15. Qd3 Nb3 16. Rad1 Nc5 17. Bxc5 Qxc5+ 18. Kh1 Qc7 19. Rd2 {0-1 Yakimenko,V (2092)-Maltsevskaya,A (2042) South FR-ch (Women) 2015 (4)}) 13... d5 {[%emt 0:12:42]} 14. e5 {[%emt 0:14:40]} dxc4 {[%emt 0:19:01]} 15. Qc1 {[%emt 0:01:38]} Nd5 {[%emt 0:04:54]} 16. Bxc4 {[%emt 0:00:08]} Nxc3 {[%emt 0:00:49]} 17. bxc3 {[%emt 0:00:05]} Qxc3 {[%emt 0:00:09]} 18. Be2 {[%emt 0:04:51]} b5 {[%emt 0:03:22]} 19. Rf3 {[%emt 0:02:27]} Bc5 {[%emt 0:07:54]} 20. Kh1 {[%emt 0:05:15]} Bxe3 {[%emt 0:00:37]} 21. Rxe3 {[%emt 0:01:53]} Qc5 {[%emt 0:00:49]} 22. Bd3 {[%emt 0:06:55]} Bb7 {[%emt 0:01:24]} 23. Qf1 {[%emt 0:06:06]} Nb4 {[%emt 0:04:52]} 24. Qe2 {[%emt 0:05:15]} Nxd3 {[%emt 0:01:00]} 25. Rxd3 {[%emt 0:00:02]} Rxd3 {[%emt 0:00:03]} 26. Qxd3 $19 {[%emt 0:00:09]} Rc8 {[%emt 0:00:21]} 27. Rd1 {[%emt 0:02:05]} Bxg2+ {[%emt 0:00:40]} 28. Kxg2 {[%emt 0:00:18]} Qxc2+ {[%emt 0:00:02]} 29. Kf1 {[%emt 0:00:38]} h6 $19 {[%emt 0:00:47]} (29... Qxa2 $2 {is a self mate.} 30. Qd8+ {[%mdl 64] Back Rank} Rxd8 31. Rxd8#) 30. Qd7 {[%emt 0:00:30]} Qc6 {[%emt 0:00:36]} 31. Qxc6 {[%emt 0:12:00]} Rxc6 {[%emt 0:00:01]} 32. Rd2 {[%emt 0:23:26]} Rc4 {[%emt 0:33:54]} 33. Rf2 {[%emt 0:00:00]} Kh7 {[%emt 0:00:00]} 34. Kg2 {[%emt 0:00:00]} Kg6 {[%emt 0:00:00]} 35. Kf3 {[%emt 0:00:00]} Kf5 {[%emt 0:00:00]} 36. Ke3 {[%emt 0:00:00]} Re4+ {[%emt 0:00:00]} 0-1

[Event "Ramat Gan Masters-A Winter 2023"]
[Site "Ramat Gan/ISR"]
[Date "2023.02.27"]
[Round "6.1"]
[White "Karp, Ilya"]
[Black "Uritsky, Yonathan"]
[Result "1-0"]
[Annotator "TA"]
[ECO "B12"]
[WhiteElo "2392"]
[BlackElo "2047"]
[PlyCount "55"]
[EventDate "2023.01.17"]
[EventType "swiss"]
[SourceTitle "playchess.com"]
[Source "ChessBase"]
[SourceQuality "1"]
[TimeControl "5400+30"]

{[%evp 9,55,28,27,12,28,19,27,18,33,27,27,-1,14,25,56,36,54,35,27,15,30,-35,-8,-16,179,190,182,183,316,375,424,439,570,566,708,694,943,935,916,921,1262,1261,1268,1249,1329,1279,1055,106]} 1. e4 {[%emt 0:00:05]} c6 {[%emt 0:00:16]} 2. d4 {[%emt 0:00:13]} d5 {[%emt 0:00:10]} 3. e5 {[%emt 0:00:06]} Bf5 {[%emt 0:00:15]} 4. Nf3 {[%emt 0:00:06][%cal Bg1f3,Bf3e1,Be1d3][%mdl 32]} e6 {[%emt 0:00:05]} 5. Be2 {[%emt 0:00:04]} Ne7 {[%emt 0:00:12][%cal Oc6c5]} 6. Nbd2 {[%emt 0:00:14] B12: Caro-Kann: Advance Variation.} Nd7 {[%emt 0:03:02]} 7. Nb3 {[%emt 0:00:42]} h6 {[%emt 0:02:07]} 8. O-O {[%emt 0:02:21] White has an edge.} g5 {[%emt 0:02:57] 8...g5 is better than 8...Bh7.} 9. Ne1 {[%emt 0:05:48]} c5 {[%emt 0:09:11]} 10. dxc5 {[%emt 0:04:26]} Nc6 {[%emt 0:02:27]} 11. Bd3 {[%emt 0:03:03]} Nxc5 {[%emt 0:05:03]} ({Don't do} 11... Ndxe5 12. Bxf5 exf5 13. f4 $16) 12. Bxf5 {[%emt 0:07:38]} exf5 {[%emt 0:02:26]} 13. Nxc5 {[%emt 0:11:11]} Bxc5 {[%emt 0:00:13]} 14. Nd3 {[%emt 0:00:34]} Bb6 {[%emt 0:02:22] [#]} 15. c3 $146 {[%emt 0:00:43]} (15. Rb1 $11) ({Predecessor:} 15. Qh5 Nd4 16. e6 Nxe6 17. Re1 Qf6 18. Bxg5 Qxg5 19. Rxe6+ Kf8 20. Qxg5 hxg5 21. Re5 {0-1 Aitbayev,A (2421)-Tsydypov,Z (2534) Speed Chess Q1 blitz 2022 (6)}) 15... Qd7 $1 $15 {[%emt 0:03:29]} 16. a4 {[%emt 0:01:44]} Rc8 $2 {[%emt 0:07:49] [#] This move loses the game for Black.} (16... O-O-O $11) 17. Qh5 $1 $18 {[%emt 0:10:44][%cal Oe5e6] e6! is the strong threat.} Ke7 {[%emt 0:05:13]} 18. b4 {[%emt 0:06:56]} a6 {[%emt 0:14:02]} (18... Qe6 {was called for.} 19. a5 Bc7) 19. Rb1 {[%emt 0:00:51]} Qe6 {[%emt 0:05:43]} 20. b5 {[%emt 0:09:00] White is clearly winning.} Na5 {[%emt 0:01:06]} 21. bxa6 {[%emt 0:01:10]} bxa6 {[%emt 0:05:11]} 22. Ba3+ {[%emt 0:00:17]} Kd8 {[%emt 0:09:51] [#]} 23. Rxb6 $1 {[%emt 0:04:17][%mdl 576] Deflection} Qxb6 {[%emt 0:00:06]} 24. Qxf7 {[%emt 0:00:01][%csl Ga3][%cal Rf7e7]} Rxc3 {[%emt 0:07:57] [#]} 25. e6 $1 {[%emt 0:10:19][%csl Ge6][%cal Rf7d7]} Kc8 {[%emt 0:03:33]} 26. Bb2 {[%emt 0:00:06][%mdl 64] Skewer} d4 {[%emt 0:03:36]} 27. Bxc3 {[%emt 0:00:45]} dxc3 {[%emt 0:00:02]} 28. Qd7+ $2 {[%emt 0:00:32] A cool game by Karp.   Weighted Error Value: White=0.08 (flawless) /Black=0.54} (28. e7 $18 {is more deadly.} Qc6 29. Qf8+ Qe8 30. Qxf5+ Qd7 31. Qf6) 1-0